[Event "Titled Tuesday Blitz November 14 Early 2023"]
[White "Belov, Alexei"]
[Black "crosky"]
[WhiteFideId "4128206"]
[WhiteElo "2596"]
[BlackElo "2249"]
[Result "1-0"]
[Round "1"]
[TimeControl "180+1"]
[Date "2023.11.14"]
[WhiteClock "0:01:26"]
[BlackClock "0:00:30"]
[Board "200"]

1. e4 {[%clk 0:03:00]}  Nc6 {[%clk 0:02:59]} 2. Nf3 {[%clk 0:02:59]}  d6 {[%clk 0:02:53]} 3. d4 {[%clk 0:02:57]}  g6 {[%clk 0:02:51]} 4. c3 {[%clk 0:02:55]}  Bg7 {[%clk 0:02:50]} 5. Bc4 {[%clk 0:02:54]}  Nf6 {[%clk 0:02:50]} 6. Nbd2 {[%clk 0:02:52]}  e5 {[%clk 0:02:46]} 7. O-O {[%clk 0:02:50]}  O-O {[%clk 0:02:46]} 8. Re1 {[%clk 0:02:51]}  Re8 {[%clk 0:02:32]} 9. dxe5 {[%clk 0:02:48]}  dxe5 {[%clk 0:02:27]} 10. Qe2 {[%clk 0:02:46]}  Bg4 {[%clk 0:02:24]} 11. h3 {[%clk 0:02:46]}  Be6 {[%clk 0:02:21]} 12. a4 {[%clk 0:02:36]}  a5 {[%clk 0:02:11]} 13. Bxe6 {[%clk 0:02:34]}  Rxe6 {[%clk 0:02:11]} 14. Nc4 {[%clk 0:02:34]}  Nh5 {[%clk 0:02:02]} 15. Bg5 {[%clk 0:02:29]}  f6 {[%clk 0:01:57]} 16. Be3 {[%clk 0:02:28]}  b6 {[%clk 0:01:47]} 17. Rad1 {[%clk 0:02:21]}  Qe7 {[%clk 0:01:48]} 18. Qc2 {[%clk 0:02:13]}  Rd8 {[%clk 0:01:39]} 19. Qb3 {[%clk 0:02:11]}  Kh8 {[%clk 0:01:24]} 20. Qb5 {[%clk 0:01:52]}  Nf4 {[%clk 0:01:22]} 21. Kh2 {[%clk 0:01:40]}  h5 {[%clk 0:01:18]} 22. g3 {[%clk 0:01:39]}  Nd3 {[%clk 0:01:16]} 23. Re2 {[%clk 0:01:32]}  Na7 {[%clk 0:00:33]} 24. Qa6 {[%clk 0:01:30]}  Nb4 {[%clk 0:00:30]} 25. Rxd8+ {[%clk 0:01:26]} 1-0


[Site "https://www.chess.com"]

[Event "Titled Tuesday Blitz November 14 Early 2023"]
[White "Liu, Leonardo"]
[Black "Skatchkov, Valery"]
[WhiteFideId "30965780"]
[BlackFideId "24195812"]
[WhiteElo "2244"]
[BlackElo "2595"]
[Result "0-1"]
[Round "1"]
[TimeControl "180+1"]
[Date "2023.11.14"]
[WhiteClock "0:01:14"]
[BlackClock "0:01:32"]
[Board "201"]

1. e4 {[%clk 0:02:58]}  e5 {[%clk 0:02:58]} 2. Nf3 {[%clk 0:02:58]}  d6 {[%clk 0:02:59]} 3. Bc4 {[%clk 0:02:59]}  Nf6 {[%clk 0:02:54]} 4. d3 {[%clk 0:02:59]}  Be7 {[%clk 0:02:55]} 5. c3 {[%clk 0:02:59]}  O-O {[%clk 0:02:55]} 6. Bb3 {[%clk 0:02:59]}  Nbd7 {[%clk 0:02:55]} 7. Nbd2 {[%clk 0:03:00]}  c6 {[%clk 0:02:56]} 8. O-O {[%clk 0:03:00]}  a5 {[%clk 0:02:55]} 9. Re1 {[%clk 0:03:01]}  Qc7 {[%clk 0:02:54]} 10. Nf1 {[%clk 0:03:01]}  b5 {[%clk 0:02:52]} 11. Ng3 {[%clk 0:03:01]}  Re8 {[%clk 0:02:50]} 12. a4 {[%clk 0:03:01]}  Nc5 {[%clk 0:02:49]} 13. Bc2 {[%clk 0:03:01]}  bxa4 {[%clk 0:02:49]} 14. d4 {[%clk 0:03:01]}  Nb3 {[%clk 0:02:50]} 15. Bxb3 {[%clk 0:03:00]}  axb3 {[%clk 0:02:51]} 16. Qxb3 {[%clk 0:03:00]}  Be6 {[%clk 0:02:50]} 17. Qc2 {[%clk 0:02:59]}  Reb8 {[%clk 0:02:49]} 18. Nf5 {[%clk 0:02:53]}  Bf8 {[%clk 0:02:19]} 19. dxe5 {[%clk 0:02:50]}  dxe5 {[%clk 0:02:17]} 20. Bg5 {[%clk 0:02:47]}  Nd7 {[%clk 0:02:17]} 21. Rad1 {[%clk 0:02:40]}  Bb3 {[%clk 0:02:16]} 22. Qd2 {[%clk 0:02:35]}  Bxd1 {[%clk 0:02:16]} 23. Rxd1 {[%clk 0:02:36]}  Nc5 {[%clk 0:02:16]} 24. Be3 {[%clk 0:02:19]}  Nxe4 {[%clk 0:02:13]} 25. Qc2 {[%clk 0:02:18]}  Nf6 {[%clk 0:02:02]} 26. Bg5 {[%clk 0:02:15]}  Nd5 {[%clk 0:02:00]} 27. Re1 {[%clk 0:02:12]}  Re8 {[%clk 0:01:56]} 28. c4 {[%clk 0:02:08]}  Nf4 {[%clk 0:01:51]} 29. g3 {[%clk 0:02:02]}  Ne6 {[%clk 0:01:50]} 30. Rxe5 {[%clk 0:01:55]}  Nxg5 {[%clk 0:01:49]} 31. Nxg5 {[%clk 0:01:55]}  g6 {[%clk 0:01:41]} 32. Rxe8 {[%clk 0:01:42]}  Rxe8 {[%clk 0:01:42]} 33. Ne3 {[%clk 0:01:42]}  Bc5 {[%clk 0:01:41]} 34. Ne4 {[%clk 0:01:38]}  Bd4 {[%clk 0:01:40]} 35. Ng4 {[%clk 0:01:35]}  Kg7 {[%clk 0:01:38]} 36. Kg2 {[%clk 0:01:28]}  f5 {[%clk 0:01:37]} 37. Qd3 {[%clk 0:01:27]}  c5 {[%clk 0:01:37]} 38. Ng5 {[%clk 0:01:17]}  Qc6+ {[%clk 0:01:32]} 39. f3 {[%clk 0:01:14]}  fxg4 {[%clk 0:01:32]} 0-1


[Site "https://www.chess.com"]

[Event "Titled Tuesday Blitz November 14 Early 2023"]
[White "Akylbek2021"]
[Black "Tasev, Dejan"]
[BlackFideId "936618"]
[WhiteElo "2241"]
[BlackElo "2591"]
[Result "0-1"]
[Round "1"]
[TimeControl "180+1"]
[Date "2023.11.14"]
[WhiteClock "0:00:02"]
[BlackClock "0:00:18"]
[Board "203"]

1. e4 {[%clk 0:03:00]}  c6 {[%clk 0:02:59]} 2. d4 {[%clk 0:02:59]}  d5 {[%clk 0:02:59]} 3. e5 {[%clk 0:03:00]}  Bf5 {[%clk 0:02:59]} 4. g4 {[%clk 0:03:00]}  Bg6 {[%clk 0:02:59]} 5. h4 {[%clk 0:03:00]}  h6 {[%clk 0:02:59]} 6. e6 {[%clk 0:03:00]}  Qd6 {[%clk 0:02:58]} 7. exf7+ {[%clk 0:02:57]}  Kxf7 {[%clk 0:02:58]} 8. Bd3 {[%clk 0:02:55]}  Bxd3 {[%clk 0:02:44]} 9. Qxd3 {[%clk 0:02:56]}  Nd7 {[%clk 0:02:45]} 10. h5 {[%clk 0:02:45]}  Ngf6 {[%clk 0:02:28]} 11. Qg6+ {[%clk 0:02:31]}  Kg8 {[%clk 0:02:27]} 12. Ne2 {[%clk 0:02:28]}  e5 {[%clk 0:02:17]} 13. Nd2 {[%clk 0:02:04]}  exd4 {[%clk 0:02:00]} 14. Nf3 {[%clk 0:02:00]}  Re8 {[%clk 0:01:51]} 15. Nxd4 {[%clk 0:01:52]}  Ne5 {[%clk 0:01:22]} 16. Qf5 {[%clk 0:01:36]}  Qd7 {[%clk 0:01:02]} 17. Bf4 {[%clk 0:00:39]}  Qxf5 {[%clk 0:00:59]} 18. gxf5 {[%clk 0:00:38]}  Ned7 {[%clk 0:00:38]} 19. O-O-O {[%clk 0:00:32]}  Kf7 {[%clk 0:00:34]} 20. Rhg1 {[%clk 0:00:26]}  Rg8 {[%clk 0:00:27]} 21. Ng3 {[%clk 0:00:12]}  Bc5 {[%clk 0:00:25]} 22. c3 {[%clk 0:00:10]}  Bxd4 {[%clk 0:00:25]} 23. cxd4 {[%clk 0:00:10]}  Ne4 {[%clk 0:00:23]} 24. f3 {[%clk 0:00:05]}  Nxg3 {[%clk 0:00:21]} 25. Rxg3 {[%clk 0:00:06]}  Nf6 {[%clk 0:00:21]} 26. Rh1 {[%clk 0:00:04]}  Re2 {[%clk 0:00:17]} 27. Rgg1 {[%clk 0:00:02]}  Rge8 {[%clk 0:00:17]} 28. Bd2 {[%clk 0:00:03]}  Rf2 {[%clk 0:00:16]} 29. Rg3 {[%clk 0:00:03]}  Ree2 {[%clk 0:00:16]} 30. Rd1 {[%clk 0:00:03]}  Nxh5 {[%clk 0:00:17]} 31. Rg6 {[%clk 0:00:02]}  Nf6 {[%clk 0:00:17]} 32. Rgg1 {[%clk 0:00:02]}  h5 {[%clk 0:00:17]} 33. b3 {[%clk 0:00:02]}  Rxf3 {[%clk 0:00:17]} 34. a4 {[%clk 0:00:02]}  Rxf5 {[%clk 0:00:17]} 35. Kc2 {[%clk 0:00:02]}  Ne4 {[%clk 0:00:17]} 36. Kd3 {[%clk 0:00:03]}  Rh2 {[%clk 0:00:17]} 37. Bg5 {[%clk 0:00:02]}  Nf2+ {[%clk 0:00:17]} 38. Kc3 {[%clk 0:00:01]}  Nxd1+ {[%clk 0:00:17]} 39. Rxd1 {[%clk 0:00:02]}  Rxg5 {[%clk 0:00:17]} 40. Rf1+ {[%clk 0:00:02]}  Kg6 {[%clk 0:00:18]} 0-1


[Site "https://www.chess.com"]

[Event "Titled Tuesday Blitz November 14 Early 2023"]
[White "Manukyan, Sargis A."]
[Black "Silvestre, Christian"]
[WhiteFideId "13303970"]
[BlackFideId "30956269"]
[WhiteElo "2588"]
[BlackElo "2237"]
[Result "1-0"]
[Round "1"]
[TimeControl "180+1"]
[Date "2023.11.14"]
[WhiteClock "0:02:17"]
[BlackClock "0:01:20"]
[Board "206"]

1. d4 {[%clk 0:03:00]}  Nf6 {[%clk 0:02:53]} 2. c4 {[%clk 0:02:59]}  e6 {[%clk 0:02:53]} 3. Nc3 {[%clk 0:02:59]}  d5 {[%clk 0:02:50]} 4. Nf3 {[%clk 0:02:58]}  b6 {[%clk 0:02:48]} 5. Bg5 {[%clk 0:02:57]}  Bb7 {[%clk 0:02:47]} 6. e3 {[%clk 0:02:57]}  dxc4 {[%clk 0:02:45]} 7. Bxc4 {[%clk 0:02:57]}  Be7 {[%clk 0:02:45]} 8. O-O {[%clk 0:02:56]}  O-O {[%clk 0:02:45]} 9. Rc1 {[%clk 0:02:54]}  c5 {[%clk 0:02:44]} 10. Qe2 {[%clk 0:02:50]}  cxd4 {[%clk 0:02:37]} 11. Nxd4 {[%clk 0:02:46]}  Ne4 {[%clk 0:02:27]} 12. Bxe7 {[%clk 0:02:37]}  Qxe7 {[%clk 0:02:26]} 13. Nxe4 {[%clk 0:02:34]}  Bxe4 {[%clk 0:02:27]} 14. Bd3 {[%clk 0:02:31]}  Bb7 {[%clk 0:02:20]} 15. Rfd1 {[%clk 0:02:27]}  Nd7 {[%clk 0:02:07]} 16. Rc7 {[%clk 0:02:22]}  Rab8 {[%clk 0:01:53]} 17. Bb5 {[%clk 0:02:19]}  Rfd8 {[%clk 0:01:20]} 18. Nc6 {[%clk 0:02:17]} 1-0


[Site "https://www.chess.com"]

[Event "Titled Tuesday Blitz November 14 Early 2023"]
[White "Limontaite, Simona"]
[Black "Vlassov, Nikolai"]
[WhiteFideId "12802506"]
[BlackFideId "4103360"]
[WhiteElo "2237"]
[BlackElo "2588"]
[Result "1/2-1/2"]
[Round "1"]
[TimeControl "180+1"]
[Date "2023.11.14"]
[WhiteClock "0:00:07"]
[BlackClock "0:00:04"]
[Board "207"]

1. d4 {[%clk 0:02:54]}  Nf6 {[%clk 0:02:59]} 2. c4 {[%clk 0:02:54]}  Nc6 {[%clk 0:02:59]} 3. Nf3 {[%clk 0:02:53]}  e6 {[%clk 0:02:59]} 4. g3 {[%clk 0:02:53]}  Bb4+ {[%clk 0:02:59]} 5. Nbd2 {[%clk 0:02:53]}  d6 {[%clk 0:02:56]} 6. Bg2 {[%clk 0:02:53]}  e5 {[%clk 0:02:56]} 7. d5 {[%clk 0:02:50]}  Bxd2+ {[%clk 0:02:55]} 8. Bxd2 {[%clk 0:02:49]}  Ne7 {[%clk 0:02:56]} 9. O-O {[%clk 0:02:44]}  O-O {[%clk 0:02:55]} 10. b4 {[%clk 0:02:35]}  c6 {[%clk 0:02:55]} 11. dxc6 {[%clk 0:02:35]}  bxc6 {[%clk 0:02:55]} 12. Bc3 {[%clk 0:02:33]}  Rb8 {[%clk 0:02:49]} 13. Nd2 {[%clk 0:02:32]}  Be6 {[%clk 0:02:40]} 14. a3 {[%clk 0:02:31]}  Qc7 {[%clk 0:02:38]} 15. Rc1 {[%clk 0:02:24]}  Rfc8 {[%clk 0:02:24]} 16. h3 {[%clk 0:02:17]}  d5 {[%clk 0:02:24]} 17. cxd5 {[%clk 0:02:14]}  cxd5 {[%clk 0:02:24]} 18. Bb2 {[%clk 0:02:11]}  Qd6 {[%clk 0:02:23]} 19. Nb3 {[%clk 0:02:06]}  Rxc1 {[%clk 0:02:19]} 20. Qxc1 {[%clk 0:02:06]}  d4 {[%clk 0:02:18]} 21. Nc5 {[%clk 0:02:05]}  Bd5 {[%clk 0:02:18]} 22. e4 {[%clk 0:02:02]}  Bc6 {[%clk 0:02:08]} 23. f4 {[%clk 0:02:01]}  a5 {[%clk 0:02:00]} 24. Qd2 {[%clk 0:02:01]}  axb4 {[%clk 0:01:59]} 25. axb4 {[%clk 0:02:01]}  Rd8 {[%clk 0:01:50]} 26. Rd1 {[%clk 0:01:58]}  exf4 {[%clk 0:01:37]} 27. gxf4 {[%clk 0:01:33]}  Nh5 {[%clk 0:01:37]} 28. Qxd4 {[%clk 0:01:19]}  Qxd4+ {[%clk 0:01:35]} 29. Rxd4 {[%clk 0:01:19]}  Rxd4 {[%clk 0:01:34]} 30. Bxd4 {[%clk 0:01:20]}  Nxf4 {[%clk 0:01:34]} 31. Bf1 {[%clk 0:01:16]}  Ne6 {[%clk 0:01:27]} 32. Nxe6 {[%clk 0:01:15]}  fxe6 {[%clk 0:01:27]} 33. b5 {[%clk 0:01:15]}  Bxe4 {[%clk 0:01:26]} 34. Bg2 {[%clk 0:01:11]}  Bxg2 {[%clk 0:01:02]} 35. Kxg2 {[%clk 0:01:12]}  Nf5 {[%clk 0:00:58]} 36. Bf2 {[%clk 0:01:08]}  Kf7 {[%clk 0:00:55]} 37. Kf3 {[%clk 0:01:03]}  e5 {[%clk 0:00:54]} 38. Bc5 {[%clk 0:00:59]}  Ke6 {[%clk 0:00:49]} 39. b6 {[%clk 0:00:56]}  Kd7 {[%clk 0:00:39]} 40. Ke4 {[%clk 0:00:56]}  Nh4 {[%clk 0:00:31]} 41. Kxe5 {[%clk 0:00:52]}  Kc6 {[%clk 0:00:31]} 42. Bf2 {[%clk 0:00:43]}  Nf3+ {[%clk 0:00:30]} 43. Kf4 {[%clk 0:00:31]}  Nd2 {[%clk 0:00:29]} 44. Bd4 {[%clk 0:00:24]}  g6 {[%clk 0:00:25]} 45. h4 {[%clk 0:00:21]}  h6 {[%clk 0:00:19]} 46. Kg4 {[%clk 0:00:16]}  Ne4 {[%clk 0:00:11]} 47. Be3 {[%clk 0:00:13]}  h5+ {[%clk 0:00:09]} 48. Kf4 {[%clk 0:00:14]}  Nd6 {[%clk 0:00:07]} 49. Kg5 {[%clk 0:00:11]}  Nc4 {[%clk 0:00:04]} 50. Bf2 {[%clk 0:00:09]}  Ne5 {[%clk 0:00:03]} 51. Bd4 {[%clk 0:00:04]}  Nf3+ {[%clk 0:00:03]} 52. Kxg6 {[%clk 0:00:05]}  Nxd4 {[%clk 0:00:03]} 53. Kxh5 {[%clk 0:00:06]}  Nf3 {[%clk 0:00:03]} 54. Kg4 {[%clk 0:00:06]}  Nxh4 {[%clk 0:00:04]} 55. Kxh4 {[%clk 0:00:07]}  Kxb6 {[%clk 0:00:04]} 1/2-1/2


[Site "https://www.chess.com"]

[Event "Titled Tuesday Blitz November 14 Early 2023"]
[White "Vila Dupla, Aurelio"]
[Black "Jaskolka, Tomasz"]
[WhiteFideId "2203383"]
[BlackFideId "1170791"]
[WhiteElo "2215"]
[BlackElo "2578"]
[Result "0-1"]
[Round "1"]
[TimeControl "180+1"]
[Date "2023.11.14"]
[WhiteClock "0:00:02"]
[BlackClock "0:00:10"]
[Board "211"]

1. Nf3 {[%clk 0:03:00]}  d5 {[%clk 0:02:56]} 2. d4 {[%clk 0:02:59]}  Nf6 {[%clk 0:02:50]} 3. c4 {[%clk 0:02:59]}  c6 {[%clk 0:02:49]} 4. cxd5 {[%clk 0:02:58]}  cxd5 {[%clk 0:02:49]} 5. Nc3 {[%clk 0:02:59]}  Nc6 {[%clk 0:02:49]} 6. Bf4 {[%clk 0:02:58]}  a6 {[%clk 0:02:41]} 7. e3 {[%clk 0:02:57]}  e6 {[%clk 0:02:41]} 8. Bd3 {[%clk 0:02:53]}  Be7 {[%clk 0:02:37]} 9. O-O {[%clk 0:02:52]}  Nh5 {[%clk 0:02:34]} 10. Bg3 {[%clk 0:02:51]}  Nxg3 {[%clk 0:02:35]} 11. hxg3 {[%clk 0:02:51]}  O-O {[%clk 0:02:20]} 12. Rc1 {[%clk 0:02:46]}  Bd7 {[%clk 0:02:20]} 13. Bb1 {[%clk 0:02:36]}  Rc8 {[%clk 0:02:13]} 14. Qd3 {[%clk 0:02:28]}  g6 {[%clk 0:02:13]} 15. Qd2 {[%clk 0:02:17]}  Qa5 {[%clk 0:02:10]} 16. a3 {[%clk 0:02:07]}  Bd6 {[%clk 0:01:50]} 17. Rfd1 {[%clk 0:01:59]}  b5 {[%clk 0:01:42]} 18. e4 {[%clk 0:01:48]}  dxe4 {[%clk 0:01:32]} 19. Nxe4 {[%clk 0:01:48]}  Qxd2 {[%clk 0:01:31]} 20. Rxd2 {[%clk 0:01:48]}  Be7 {[%clk 0:01:26]} 21. Ne5 {[%clk 0:01:25]}  Nxe5 {[%clk 0:01:18]} 22. Rxc8 {[%clk 0:01:23]}  Nf3+ {[%clk 0:01:04]} 23. gxf3 {[%clk 0:01:22]}  Rxc8 {[%clk 0:01:05]} 24. Nc5 {[%clk 0:01:06]}  Bxc5 {[%clk 0:00:56]} 25. dxc5 {[%clk 0:01:06]}  Rxc5 {[%clk 0:00:56]} 26. Bxg6 {[%clk 0:01:06]}  hxg6 {[%clk 0:00:40]} 27. Rxd7 {[%clk 0:01:05]}  Rc2 {[%clk 0:00:39]} 28. Ra7 {[%clk 0:01:03]}  Rc6 {[%clk 0:00:30]} 29. Kg2 {[%clk 0:00:47]}  Kg7 {[%clk 0:00:30]} 30. f4 {[%clk 0:00:47]}  Kf6 {[%clk 0:00:27]} 31. Kf3 {[%clk 0:00:47]}  Rb6 {[%clk 0:00:20]} 32. g4 {[%clk 0:00:43]}  Kg7 {[%clk 0:00:15]} 33. g5 {[%clk 0:00:43]}  Rc6 {[%clk 0:00:15]} 34. Ra8 {[%clk 0:00:35]}  Rc2 {[%clk 0:00:14]} 35. Rxa6 {[%clk 0:00:34]}  Rxb2 {[%clk 0:00:15]} 36. Rb6 {[%clk 0:00:29]}  Kf8 {[%clk 0:00:15]} 37. a4 {[%clk 0:00:28]}  Rb3+ {[%clk 0:00:15]} 38. Kg4 {[%clk 0:00:26]}  bxa4 {[%clk 0:00:16]} 39. Ra6 {[%clk 0:00:26]}  Ra3 {[%clk 0:00:13]} 40. Ra7 {[%clk 0:00:24]}  Ra1 {[%clk 0:00:13]} 41. Kg3 {[%clk 0:00:24]}  a3 {[%clk 0:00:13]} 42. Kg2 {[%clk 0:00:25]}  Ke8 {[%clk 0:00:13]} 43. Kh2 {[%clk 0:00:23]}  a2 {[%clk 0:00:11]} 44. Kg2 {[%clk 0:00:23]}  Kd8 {[%clk 0:00:12]} 45. Ra8+ {[%clk 0:00:23]}  Kc7 {[%clk 0:00:12]} 46. Ra7+ {[%clk 0:00:22]}  Kb6 {[%clk 0:00:12]} 47. Ra8 {[%clk 0:00:23]}  Kc5 {[%clk 0:00:12]} 48. Kf3 {[%clk 0:00:22]}  Kd4 {[%clk 0:00:11]} 49. Rd8+ {[%clk 0:00:22]}  Kc3 {[%clk 0:00:11]} 50. Rc8+ {[%clk 0:00:21]}  Kd2 {[%clk 0:00:12]} 51. Rd8+ {[%clk 0:00:20]}  Ke1 {[%clk 0:00:12]} 52. Ra8 {[%clk 0:00:19]}  Kf1 {[%clk 0:00:12]} 53. Ra7 {[%clk 0:00:09]}  Kg1 {[%clk 0:00:12]} 54. Kg3 {[%clk 0:00:09]}  Kh1 {[%clk 0:00:12]} 55. Ra6 {[%clk 0:00:08]}  Kg1 {[%clk 0:00:11]} 56. Ra7 {[%clk 0:00:08]}  Kf1 {[%clk 0:00:10]} 57. Ra6 {[%clk 0:00:08]}  Ke2 {[%clk 0:00:10]} 58. Ra7 {[%clk 0:00:02]}  Rg1+ {[%clk 0:00:10]} 0-1


[Site "https://www.chess.com"]

[Event "Titled Tuesday Blitz November 14 Early 2023"]
[White "Ramu, K."]
[Black "Bagrationi, Alexander"]
[WhiteFideId "5006171"]
[BlackFideId "14104954"]
[WhiteElo "2190"]
[BlackElo "2571"]
[Result "0-1"]
[Round "1"]
[TimeControl "180+1"]
[Date "2023.11.14"]
[WhiteClock "0:02:18"]
[BlackClock "0:02:42"]
[Board "213"]

1. e4 {[%clk 0:03:00]}  c5 {[%clk 0:02:59]} 2. Nf3 {[%clk 0:02:53]}  Nc6 {[%clk 0:02:59]} 3. d4 {[%clk 0:02:49]}  cxd4 {[%clk 0:02:59]} 4. Nxd4 {[%clk 0:02:50]}  g6 {[%clk 0:03:00]} 5. Nc3 {[%clk 0:02:48]}  Bg7 {[%clk 0:03:00]} 6. Be3 {[%clk 0:02:47]}  Nf6 {[%clk 0:03:00]} 7. f3 {[%clk 0:02:45]}  O-O {[%clk 0:02:59]} 8. Qd2 {[%clk 0:02:45]}  d5 {[%clk 0:02:58]} 9. exd5 {[%clk 0:02:41]}  Nxd5 {[%clk 0:02:57]} 10. O-O-O {[%clk 0:02:40]}  Nxe3 {[%clk 0:02:50]} 11. Qxe3 {[%clk 0:02:38]}  Nxd4 {[%clk 0:02:49]} 12. Nb5 {[%clk 0:02:18]}  Nf5 {[%clk 0:02:42]} 0-1


[Site "https://www.chess.com"]

[Event "Titled Tuesday Blitz November 14 Early 2023"]
[White "Feliz Dotel, Dewar Bienvenido"]
[Black "Nasir, Zehn"]
[WhiteFideId "6402801"]
[BlackFideId "2613239"]
[WhiteElo "2156"]
[BlackElo "2566"]
[Result "0-1"]
[Round "1"]
[TimeControl "180+1"]
[Date "2023.11.14"]
[WhiteClock "0:00:00"]
[BlackClock "0:01:34"]
[Board "217"]

1. d4 {[%clk 0:02:59]}  Nf6 {[%clk 0:03:00]} 2. e3 {[%clk 0:02:59]}  d5 {[%clk 0:03:00]} 3. Nf3 {[%clk 0:02:59]}  c5 {[%clk 0:03:00]} 4. dxc5 {[%clk 0:02:59]}  Nc6 {[%clk 0:02:59]} 5. a3 {[%clk 0:02:49]}  a5 {[%clk 0:02:54]} 6. c4 {[%clk 0:02:48]}  Bg4 {[%clk 0:02:50]} 7. cxd5 {[%clk 0:02:42]}  Nxd5 {[%clk 0:02:50]} 8. Be2 {[%clk 0:02:42]}  e6 {[%clk 0:02:48]} 9. O-O {[%clk 0:02:41]}  Bxc5 {[%clk 0:02:48]} 10. b3 {[%clk 0:02:32]}  Qf6 {[%clk 0:02:43]} 11. Ra2 {[%clk 0:02:26]}  Rd8 {[%clk 0:02:38]} 12. Rd2 {[%clk 0:02:25]}  O-O {[%clk 0:02:31]} 13. Bb2 {[%clk 0:02:23]}  Qh6 {[%clk 0:02:29]} 14. Nc3 {[%clk 0:02:05]}  Bxf3 {[%clk 0:02:14]} 15. Bxf3 {[%clk 0:02:01]}  Nxe3 {[%clk 0:02:15]} 16. fxe3 {[%clk 0:00:47]}  Bxe3+ {[%clk 0:02:16]} 17. Kh1 {[%clk 0:00:44]}  Rxd2 {[%clk 0:02:16]} 18. Qb1 {[%clk 0:00:36]}  Nd4 {[%clk 0:02:12]} 19. Ne4 {[%clk 0:00:27]}  Bf4 {[%clk 0:01:58]} 20. h3 {[%clk 0:00:17]}  Nxf3 {[%clk 0:01:57]} 21. Rxf3 {[%clk 0:00:18]}  Re2 {[%clk 0:01:47]} 22. Nc3 {[%clk 0:00:06]}  Re3 {[%clk 0:01:44]} 23. Qf1 {[%clk 0:00:04]}  Rxf3 {[%clk 0:01:43]} 24. Qxf3 {[%clk 0:00:04]}  Bc1 {[%clk 0:01:39]} 25. Ba1 {[%clk 0:00:00]}  Qd2 {[%clk 0:01:34]} 0-1


[Site "https://www.chess.com"]

[Event "Titled Tuesday Blitz November 14 Early 2023"]
[White "spiritof_stlouis"]
[Black "missponyo10"]
[WhiteElo "2558"]
[BlackElo "2136"]
[Result "0-1"]
[Round "1"]
[TimeControl "180+1"]
[Date "2023.11.14"]
[WhiteClock "0:00:00"]
[BlackClock "0:01:34"]
[Board "222"]

1. Nf3 {[%clk 0:02:58]}  d5 {[%clk 0:02:59]} 2. d4 {[%clk 0:02:58]}  Nf6 {[%clk 0:02:59]} 3. Bf4 {[%clk 0:02:58]}  c5 {[%clk 0:02:58]} 4. e3 {[%clk 0:02:59]}  Nc6 {[%clk 0:02:58]} 5. c3 {[%clk 0:02:58]}  e6 {[%clk 0:02:58]} 6. Nbd2 {[%clk 0:02:58]}  Be7 {[%clk 0:02:55]} 7. Bd3 {[%clk 0:02:57]}  O-O {[%clk 0:02:52]} 8. O-O {[%clk 0:02:58]}  cxd4 {[%clk 0:02:51]} 9. exd4 {[%clk 0:02:57]}  a6 {[%clk 0:02:51]} 10. a4 {[%clk 0:02:56]}  h6 {[%clk 0:02:47]} 11. Qe2 {[%clk 0:02:55]}  Bd6 {[%clk 0:02:45]} 12. Ne5 {[%clk 0:02:54]}  Bxe5 {[%clk 0:02:41]} 13. dxe5 {[%clk 0:02:53]}  Nd7 {[%clk 0:02:39]} 14. Nf3 {[%clk 0:02:48]}  Qe7 {[%clk 0:02:30]} 15. Bc2 {[%clk 0:02:40]}  f5 {[%clk 0:02:23]} 16. exf6 {[%clk 0:02:39]}  Qxf6 {[%clk 0:02:22]} 17. Bd6 {[%clk 0:02:36]}  Rf7 {[%clk 0:02:19]} 18. Rfe1 {[%clk 0:02:29]}  e5 {[%clk 0:02:18]} 19. Ba3 {[%clk 0:02:05]}  e4 {[%clk 0:02:11]} 20. Nd2 {[%clk 0:01:27]}  Nde5 {[%clk 0:02:10]} 21. c4 {[%clk 0:01:14]}  Bg4 {[%clk 0:02:05]} 22. Qe3 {[%clk 0:01:10]}  d4 {[%clk 0:02:04]} 23. Qxe4 {[%clk 0:01:09]}  Qxf2+ {[%clk 0:02:03]} 24. Kh1 {[%clk 0:01:09]}  Bf5 {[%clk 0:01:58]} 25. Qd5 {[%clk 0:00:35]}  Bxc2 {[%clk 0:01:46]} 26. Nf1 {[%clk 0:00:00]}  Nd3 {[%clk 0:01:34]} 0-1


[Site "https://www.chess.com"]

[Event "Titled Tuesday Blitz November 14 Early 2023"]
[White "LouieKov2022"]
[Black "DonCiao"]
[WhiteElo "2557"]
[BlackElo "2130"]
[Result "1-0"]
[Round "1"]
[TimeControl "180+1"]
[Date "2023.11.14"]
[WhiteClock "0:00:07"]
[BlackClock "0:00:00"]
[Board "224"]

1. e4 {[%clk 0:03:00]}  c5 {[%clk 0:02:58]} 2. Nf3 {[%clk 0:03:00]}  Nc6 {[%clk 0:02:58]} 3. d4 {[%clk 0:03:00]}  cxd4 {[%clk 0:02:59]} 4. Nxd4 {[%clk 0:03:01]}  Nf6 {[%clk 0:02:59]} 5. Nc3 {[%clk 0:03:01]}  e5 {[%clk 0:02:59]} 6. Ndb5 {[%clk 0:03:01]}  d6 {[%clk 0:02:59]} 7. Bg5 {[%clk 0:03:00]}  a6 {[%clk 0:02:59]} 8. Bxf6 {[%clk 0:03:00]}  gxf6 {[%clk 0:02:58]} 9. Na3 {[%clk 0:03:00]}  b5 {[%clk 0:02:56]} 10. Nd5 {[%clk 0:03:00]}  f5 {[%clk 0:02:56]} 11. exf5 {[%clk 0:02:59]}  Bxf5 {[%clk 0:02:55]} 12. Bd3 {[%clk 0:02:57]}  Be6 {[%clk 0:02:46]} 13. Be4 {[%clk 0:02:51]}  Rc8 {[%clk 0:02:27]} 14. c3 {[%clk 0:02:47]}  Bg7 {[%clk 0:02:18]} 15. Qh5 {[%clk 0:02:45]}  Ne7 {[%clk 0:01:38]} 16. Nxe7 {[%clk 0:01:48]}  Qxe7 {[%clk 0:01:37]} 17. Nc2 {[%clk 0:01:49]}  h6 {[%clk 0:01:27]} 18. Ne3 {[%clk 0:01:45]}  b4 {[%clk 0:01:07]} 19. cxb4 {[%clk 0:01:38]}  d5 {[%clk 0:01:07]} 20. Bxd5 {[%clk 0:01:35]}  Qxb4+ {[%clk 0:01:05]} 21. Kf1 {[%clk 0:01:35]}  Bxd5 {[%clk 0:01:03]} 22. h4 {[%clk 0:00:43]}  Be6 {[%clk 0:01:01]} 23. b3 {[%clk 0:00:35]}  O-O {[%clk 0:00:54]} 24. g4 {[%clk 0:00:34]}  Qd4 {[%clk 0:00:50]} 25. Rd1 {[%clk 0:00:32]}  Qe4 {[%clk 0:00:49]} 26. Rg1 {[%clk 0:00:31]}  Rc3 {[%clk 0:00:47]} 27. g5 {[%clk 0:00:20]}  Kh8 {[%clk 0:00:35]} 28. gxh6 {[%clk 0:00:19]}  Bf6 {[%clk 0:00:34]} 29. h7 {[%clk 0:00:16]}  Bh3+ {[%clk 0:00:27]} 30. Ke2 {[%clk 0:00:15]}  Rc2+ {[%clk 0:00:26]} 31. Rd2 {[%clk 0:00:15]}  Rxd2+ {[%clk 0:00:25]} 32. Kxd2 {[%clk 0:00:16]}  Rd8+ {[%clk 0:00:25]} 33. Ke2 {[%clk 0:00:14]}  Qd3+ {[%clk 0:00:23]} 34. Kf3 {[%clk 0:00:14]}  e4+ {[%clk 0:00:18]} 35. Kg3 {[%clk 0:00:13]}  Be6 {[%clk 0:00:17]} 36. Kh2 {[%clk 0:00:11]}  Qd2 {[%clk 0:00:16]} 37. Rg2 {[%clk 0:00:10]}  Rd3 {[%clk 0:00:07]} 38. Ng4 {[%clk 0:00:07]}  Bxg4 {[%clk 0:00:00]} 39. Qxg4 {[%clk 0:00:07]} 1-0


[Site "https://www.chess.com"]